[Event "22nd Alekhine FIDE 2018"]
[Site "Voronezh"]
[Date "2018.06.15"]
[Round "4"]
[White "Bruyatskaya, Mariya"]
[Black "Markevich, Arseniy"]
[Result "1-0"]
[ECO "B29"]
[WhiteElo "2026"]
[BlackElo "2076"]
[Annotator "NA RC"]
[PlyCount "105"]
[EventDate "2018.??.??"]
[EventType "swiss"]
[EventCountry "RUS"]
[SourceTitle "playchess.com"]
[Source "ChessBase"]
[SourceQuality "1"]
[TimeControl "5400+30"]

{[%evp 8,105,20,15,24,30,28,45,61,0,58,55,118,131,116,92,96,102,100,112,89,83,112,73,137,139,178,81,85,85,83,79,92,74,64,59,137,56,62,49,42,47,40,45,46,33,31,35,49,35,32767,32767,32767,32767,32767,32767,32767,32767,32767,32767,32767,32767,32767,32767,32767,32767,32767,32767,32767,32767,257,32767,32767,32767,32767,735,32767,1031,798,1112,750,1108,2091,29970,5081,29976,29976,29980,12851,29984,29983,29986,29987,29987,29987,29988,29989,29989,29989,29989]} 1. e4 {[%emt 0:00:00]} c5 {[%emt 0:02:25]} 2. Nf3 {[%emt 0:00:43]} Nf6 {[%emt 0:00:04]} 3. e5 {[%emt 0:00:38]} Nd5 {[%emt 0:00:04]} 4. Nc3 {[%emt 0:00:04]} e6 {[%emt 0:00:11]} 5. Nxd5 {[%emt 0:00:14]} exd5 {[%emt 0:00:07]} 6. d4 {[%emt 0:00:58]} Nc6 {[%emt 0:00:05]} 7. dxc5 {[%emt 0:02:43]} Bxc5 {[%emt 0:00:05]} 8. Bd3 {[%emt 0:00:34] LiveBook: 50 Games B29: Sicilian: 2 Nf3 Nf6 (Nimzowitsch Variation)} Qe7 {[%emt 0:11:38]} (8... d6 9. exd6 Qxd6 10. O-O O-O 11. Re1 h6 12. h3 Bd7 13. Be3 d4 14. Bd2 Rfe8 15. a3 Qd5 16. b4 Bd6 17. c4 dxc3 18. Rxe8+ Rxe8 19. Bxc3 {½-½ (29) So,W (2792)-Mamedyarov,S (2804) Wijk aan Zee 2018}) 9. O-O {[%emt 0:00:29]} h6 $146 {[%emt 0:01:14]} ({Predecessor:} 9... Nxe5 10. Nxe5 {1-0 (10) Tomescu,V (2425)-Burani,E (2050) Cesenatico 2003}) 10. c3 {[%emt 0:05:32]} d6 {[%emt 0:08:54]} 11. exd6 {[%emt 0:01:00]} Bxd6 {[%emt 0:04:48]} 12. Re1 {[%emt 0:01:34]} Be6 {[%emt 0:00:12]} 13. Bc2 {[%emt 0:00:38]} O-O-O {[%emt 0:07:56]} 14. Be3 {[%emt 0:05:17]} Bb8 {[%emt 0:13:09]} 15. Nd4 {[%emt 0:07:22]} Nxd4 {[%emt 0:01:53]} ({Günstiger ist} 15... h5) 16. Qxd4 {[%emt 0:00:43]} ({Don't take} 16. cxd4 $6 Qf6 $14) 16... Qd6 {[%emt 0:00:52]} 17. Qc5+ {[%emt 0:00:53]} (17. g3 $142) 17... Qxc5 {[%emt 0:00:33]} 18. Bxc5 {[%emt 0:00:05]} Rhe8 {[%emt 0:03:38]} 19. Bd4 {[%emt 0:00:55]} g6 {[%emt 0:06:30]} 20. Bg7 {[%emt 0:01:00]} Bd7 {[%emt 0:03:07]} 21. Bb3 Rxe1+ {[%emt 0:07:49]} 22. Rxe1 {[%emt 0:03:30]} Be6 {[%emt 0:00:07]} 23. h4 {[%emt 0:00:32]} h5 {[%emt 0:00:23]} 24. Bf6 {[%emt 0:00:21]} Rd6 {[%emt 0:00:27]} 25. Be5 {[%emt 0:03:14]} Rc6 {[%emt 0:00:24]} 26. Bxb8 {[%emt 0:00:40]} Kxb8 {[%emt 0:00:03]} 27. Rd1 {[%emt 0:00:10]} Rd6 {[%emt 0:02:09]} 28. Kh2 {[%emt 0:00:52]} Kc7 {[%emt 0:00:16]} 29. Kg3 {[%emt 0:00:13]} Kc6 {[%emt 0:01:54]} 30. Rd4 {[%emt 0:01:09]} a5 {[%emt 0:03:42]} 31. f3 {[%emt 0:01:24]} Kc5 {[%emt 0:04:46]} 32. Kf4 {[%emt 0:00:49]} f6 {[%emt 0:00:22]} 33. g4 {[%emt 0:00:50]} Rd8 {[%emt 0:00:15]} 34. Bc2 {[%emt 0:02:12]} hxg4 {[%emt 0:03:31]} 35. fxg4 {[%emt 0:00:07]} Bf7 {[%emt 0:00:22]} 36. Rd2 {[%emt 0:01:40]} b5 {[%emt 0:05:02]} 37. b3 {[%emt 0:01:35]} d4 {[%emt 0:01:04]} 38. cxd4+ {[%emt 0:00:29]} Rxd4+ {[%emt 0:03:07]} (38... Kd6 $142 39. Bd3 Rh8) 39. Rxd4 {[%emt 0:00:06]} Kxd4 {[%emt 0:00:07]} 40. g5 {[%emt 0:00:03]} Kc3 {[%emt 0:00:24] [#]} 41. Bxg6 $1 {[%emt 0:02:13]} Bxg6 {[%emt 0:02:12]} 42. gxf6 {[%emt 0:00:04]} a4 {[%emt 0:04:49]} 43. Kg5 {[%emt 0:00:16]} (43. bxa4 $142 bxa4 44. Kg5) 43... Bf7 {[%emt 0:00:39]} 44. h5 {[%emt 0:00:20]} axb3 {[%emt 0:00:39]} 45. axb3 {[%emt 0:00:05]} Bxb3 {[%emt 0:00:17]} 46. h6 {[%emt 0:00:05]} Bg8 {[%emt 0:00:11] [#]} 47. f7 $1 {[%emt 0:00:09]} Bxf7 {[%emt 0:00:06]} 48. h7 {[%emt 0:00:05]} b4 {[%emt 0:01:01]} 49. h8=Q+ {[%emt 0:00:08]} Kb3 {[%emt 0:00:10]} 50. Qd4 {[%emt 0:00:47]} Bg8 {[%emt 0:00:54]} 51. Kf4 {[%emt 0:00:24]} Ka3 {[%emt 0:00:22]} 52. Qa7+ {[%emt 0:00:23]} Kb3 {[%emt 0:00:11]} 53. Ke3 {[%emt 0:00:08]} 1-0

[Event "22nd Alekhine FIDE 2018"]
[Site "Voronezh"]
[Date "2018.06.15"]
[Round "4"]
[White "Lepaev, Andrey"]
[Black "Lilov, Aleksandr"]
[Result "1/2-1/2"]
[ECO "A43"]
[WhiteElo "1992"]
[BlackElo "2046"]
[Annotator "NA"]
[PlyCount "59"]
[EventDate "2018.??.??"]
[EventType "swiss"]
[EventCountry "RUS"]
[SourceTitle "playchess.com"]
[Source "ChessBase"]
[SourceQuality "1"]
[TimeControl "5400+30"]

{[%evp 8,33,69,46,21,55,43,33,43,54,30,29,79,31,26,20,24,12,13,12,18,-43,-37,-43,0,0,9,30]} 1. d4 {[%emt 0:00:00]} c5 {[%emt 0:00:07]} 2. d5 {[%emt 0:00:00]} g6 {[%emt 0:00:03]} 3. e4 {[%emt 0:00:07]} Bg7 {[%emt 0:00:05]} 4. Nc3 {[%emt 0:02:19]} d6 {[%emt 0:01:45]} 5. Bb5+ {[%emt 0:02:58]} Bd7 {[%emt 0:01:18] A43: Schmid Benoni} (5... Nd7 6. a4 Ngf6 7. Nf3 O-O 8. O-O Ne8 9. Re1 Nc7 10. Bf1 a6 11. Bf4 Rb8 12. e5 dxe5 13. Nxe5 Nxe5 14. Bxe5 Bxe5 15. Rxe5 b5 16. axb5 axb5 17. Qe1 b4 18. Na4 {0-1 (40) Alonso Rosell,A (2540)-Bachmann,A (2610) Barcelona 2016}) 6. a4 {[%emt 0:00:05]} Na6 {[%emt 0:00:52]} 7. Nf3 {[%emt 0:01:31]} Nc7 {[%emt 0:00:15]} 8. Bxd7+ {[%emt 0:27:53]} Qxd7 {[%emt 0:00:16] LiveBook: 5 Games} 9. h3 $146 {[%emt 0:00:11]} ({Predecessor:} 9. O-O f5 10. exf5 gxf5 11. Nb5 Nxb5 12. axb5 Nf6 13. Ng5 {1-0 (26) Figura,A (2353)-Meister,J (2504) Dresden 2006}) 9... a6 {[%emt 0:10:50]} 10. Qe2 {[%emt 0:03:14]} Nf6 {[%emt 0:00:22]} 11. a5 {[%emt 0:06:29]} O-O {[%emt 0:00:51]} 12. O-O {[%emt 0:01:35]} Rae8 {[%emt 0:04:35]} 13. Rd1 {[%emt 0:02:43]} Nb5 {[%emt 0:03:53]} 14. Qc4 {[%emt 0:21:56]} (14. Na4 $11) 14... Nxc3 {[%emt 0:16:02]} 15. bxc3 {[%emt 0:00:05]} Qb5 {[%emt 0:00:14]} 16. Qd3 {[%emt 0:00:38]} c4 {[%emt 0:03:00]} 17. Qe2 $11 {[%emt 0:00:27]} Nd7 {[%emt 0:03:09]} 18. Nd4 {[%emt 0:00:23]} Qc5 {[%emt 0:00:04]} 19. Ra4 {[%emt 0:00:25]} Rc8 {[%emt 0:00:46]} 20. Ba3 {[%emt 0:02:07]} Qc7 {[%emt 0:01:55]} 21. Rb1 {[%emt 0:00:04]} Nc5 {[%emt 0:02:44]} 22. Bxc5 {[%emt 0:00:39]} dxc5 {[%emt 0:00:03]} 23. Rxc4 {[%emt 0:05:46]} Qxa5 {[%emt 0:00:31]} 24. Nb3 {[%emt 0:00:03]} Qb5 {[%emt 0:00:40]} 25. Qf1 {[%emt 0:00:12]} b6 {[%emt 0:00:36]} 26. Nd2 {[%emt 0:02:01]} Qa5 {[%emt 0:01:28]} 27. Ra1 {[%emt 0:00:08]} Qb5 {[%emt 0:00:04]} 28. Rb1 {[%emt 0:00:04]} Qa5 {[%emt 0:00:03]} 29. Ra1 {[%emt 0:00:04]} Qb5 {[%emt 0:00:04]} 30. Rb1 {[%emt 0:00:04]} 1/2-1/2

[Event "22nd Alekhine FIDE 2018"]
[Site "Voronezh"]
[Date "2018.06.15"]
[Round "4"]
[White "Nakonechny, Ignat"]
[Black "Katyshkina, Anastasia"]
[Result "1-0"]
[ECO "A16"]
[WhiteElo "1890"]
[BlackElo "2035"]
[Annotator "NA RC"]
[PlyCount "93"]
[EventDate "2018.??.??"]
[EventType "swiss"]
[EventCountry "RUS"]
[SourceTitle "playchess.com"]
[Source "ChessBase"]
[SourceQuality "1"]
[TimeControl "5400+30"]

{[%evp 8,77,35,23,40,33,26,19,20,0,6,6,25,-11,38,-16,0,2,52,16,76,61,73,58,67,67,75,27,32,19,18,-81,-79,-91,-76,-105,0,32767,32767,32767,32767,32767,32767,32767,32767,32767,32767,32767,32767,32767,32767,32767,32767,32767,32767,32767,32767,32767,32767,32767,32767,32767,32767,32767,0,0,0,0,162,141,152,60]} 1. c4 Nf6 2. Nc3 d5 3. cxd5 Nxd5 4. g3 g6 5. Bg2 Nxc3 6. bxc3 Bg7 7. Nf3 O-O 8. O-O c5 9. d4 Nc6 10. e3 Bf5 11. Bb2 {LiveBook: 3 Games D75: Fianchetto Grünfeld: Main Line with 7...c5} (11. Ba3 cxd4 12. Nxd4 Bd7 13. Rb1 Qc8 14. Qb3 Rb8 15. Rfd1 Re8 16. Nb5 a6 17. Bd5 axb5 18. Bxf7+ Kh8 19. Bxe8 Bxe8 20. Qxb5 {0-1 (34) Caruana,F (2795)-Vachier Lagrave,M (2788) chess.com INT 2016}) 11... Qc7 $146 ({Predecessor:} 11... Be4 12. Qe2 cxd4 13. cxd4 Qd5 14. Rfc1 b6 15. Ne1 Bxg2 16. Nxg2 e5 17. Qc4 Qxc4 18. Rxc4 {½-½ (27) Keymer,V (2349)-Vorobiov,E (2572) Schwaebisch Gmuend 2016}) 12. Nd2 Rad8 13. Qe2 Qc8 14. d5 Na5 15. e4 Bg4 16. f3 Bd7 17. Nb3 Qc7 18. Rf2 b5 19. Rd1 (19. Nxa5 $11 {remains equal.} Qxa5 20. Qe3) 19... Nc4 20. Ba1 a5 21. f4 {[#]} Bc8 (21... e6 $1 $17) 22. a4 bxa4 23. Qxc4 axb3 24. Qxb3 c4 25. Qa3 Bg4 26. Rb1 Rb8 27. Rfb2 Rfc8 28. h3 Rxb2 29. Rxb2 Bd1 30. Rb5 a4 31. Qb4 Qa7+ 32. Kh2 Bf8 33. Bb2 Qf2 34. Ba3 h5 35. h4 {[#]} Qc2 ({Much weaker is} 35... Bf3 $6 36. Qb2 $11) ({Better is} 35... e5 $1 $17 {[%mdl 512]} 36. Qb2 (36. fxe5 Bxb4) 36... Qxb2 37. Bxb2 a3) 36. Qb2 Qd3 $1 37. e5 Bb3 $2 (37... Bf3 $11 {and Black stays safe.}) 38. Rb7 Re8 39. Bb4 (39. Bc5 $16) 39... Bd1 40. Ra7 Qe3 41. Ra5 Rb8 42. Qa1 Qd2 43. Kh1 Qe1+ 44. Kh2 Qd2 45. d6 exd6 46. Rd5 Qf2 47. Qxd1 1-0

[Event "22nd Alekhine FIDE 2018"]
[Site "Voronezh"]
[Date "2018.06.16"]
[Round "5"]
[White "Sobina, Pavel"]
[Black "Kitaev, Roman"]
[Result "0-1"]
[ECO "B84"]
[WhiteElo "2199"]
[BlackElo "2031"]
[Annotator "NA"]
[PlyCount "62"]
[EventDate "2018.??.??"]
[EventType "swiss"]
[EventCountry "RUS"]
[SourceTitle "playchess.com"]
[Source "ChessBase"]
[SourceQuality "1"]
[TimeControl "5400+30"]

{[%evp 11,62,19,24,32767,32767,14,0,7,-1,-14,22,-43,8,-4,0,0,29,10,24,-69,-63,-64,32767,-148,32,32767,32767,32767,32767,32767,32767,32767,32767,32767,-93,-321,-294,-318,32767,-397,-422,-520,-522,-532,-545,32767,-757,32767,32767,-29994,-29995,32767,-937]} 1. e4 {[%emt 0:00:00]} c5 {[%emt 0:00:09]} 2. Nf3 {[%emt 0:00:00]} d6 {[%emt 0:00:04]} 3. d4 {[%emt 0:00:00]} Nf6 {[%emt 0:00:04]} 4. Nc3 {[%emt 0:00:44]} cxd4 {[%emt 0:00:05]} 5. Nxd4 {[%emt 0:00:05]} a6 {[%emt 0:00:05]} 6. Be2 {[%emt 0:04:26]} e6 {[%emt 0:00:14]} 7. Be3 {[%emt 0:04:18]} Nbd7 {[%emt 0:00:21]} 8. f4 {[%emt 0:02:13]} b5 {[%emt 0:00:21]} 9. Bf3 {[%emt 0:07:27]} Bb7 {[%emt 0:00:31]} 10. a3 {[%emt 0:06:13]} Qc7 {[%emt 0:00:54]} 11. O-O {[%emt 0:03:50]} (11. Qe2 $11) 11... Nc5 {[%emt 0:03:31] B84: Sicilian Scheveningen: 6 Be2 a6, lines without early Be3} (11... Be7 12. Qe1 h5 13. Kh1 Ng4 14. Bg1 g5 15. fxg5 Bxg5 16. a4 bxa4 17. e5 Ndxe5 18. Ndb5 axb5 19. Nxb5 Qd7 20. Bxb7 Rb8 21. Qb4 O-O 22. Ba6 Qc6 23. Qxa4 Nc4 24. h3 Nge5 {½-½ (24) Ponkratov,P (2589)-Artemiev,V (2461) Pavlodar 2012}) 12. e5 {[%emt 0:02:55]} dxe5 {[%emt 0:00:57]} 13. fxe5 {[%emt 0:00:38] LiveBook: 3 Games} Nfe4 $146 {[%emt 0:04:42]} ({Predecessor:} 13... Qxe5 14. Bf4 Bxf3 15. Rxf3 Qh5 16. Qf1 Ncd7 17. b4 g5 18. Bg3 Bg7 19. a4 {½-½ (86) Liang,A (2404)-Li,R (2394) Saint Louis 2015}) 14. Nxe4 {[%emt 0:05:57]} (14. Ndxb5 $5 axb5 15. Nxb5 $11) 14... Nxe4 {[%emt 0:00:36]} 15. Bxe4 {[%emt 0:13:38]} ({White should try} 15. Bf4 $11) 15... Bxe4 {[%emt 0:01:33]} 16. Qg4 {[%emt 0:00:08]} Qxe5 {[%emt 0:07:21]} 17. Rae1 {[%emt 0:02:04]} (17. Nf3 $15 Qd5 18. Rad1 Bxf3 19. Qxf3 Qxf3 20. Rxf3) 17... Bc5 $2 {[%emt 0:10:16]} (17... Bd6 $17 18. Qh3 O-O) 18. Nb3 {[%emt 0:20:45]} f5 {[%emt 0:10:44]} 19. Qh5+ {[%emt 0:00:27]} g6 {[%emt 0:00:22]} 20. Qh6 {[%emt 0:00:34]} Bxe3+ 21. Rxe3 {[%emt 0:00:27]} Rd8 {[%emt 0:05:23]} 22. Rc3 {[%emt 0:04:34] [#]} Bd5 $1 {[%emt 0:09:47]} 23. Re3 $2 {[%emt 0:00:48]} (23. Nd2 $17 {was called for.}) 23... Qxb2 {[%emt 0:03:07]} 24. Rfe1 {[%emt 0:04:17]} Kf7 {[%emt 0:08:17]} 25. Qh3 {[%emt 0:02:46]} Rc8 {[%emt 0:01:31]} 26. Nd2 {[%emt 0:02:45]} Rxc2 {[%emt 0:04:23]} 27. Nf3 {[%emt 0:00:01]} Kg7 {[%emt 0:03:29]} 28. g4 {[%emt 0:03:26]} fxg4 {[%emt 0:03:22]} 29. Qxg4 {[%emt 0:00:07]} Rf8 {[%emt 0:00:24]} 30. Qd4+ {[%emt 0:03:57]} Qxd4 {[%emt 0:00:21]} 31. Nxd4 {[%emt 0:00:07]} Rg2+ $19 {[%emt 0:00:13]} 0-1

[Event "22nd Alekhine FIDE 2018"]
[Site "Voronezh"]
[Date "2018.06.16"]
[Round "5"]
[White "Garafutdinov, Ainur"]
[Black "Kolyuzhnov, Vladislav"]
[Result "0-1"]
[ECO "C54"]
[WhiteElo "2122"]
[BlackElo "1986"]
[Annotator "NA"]
[PlyCount "105"]
[EventDate "2018.??.??"]
[EventType "swiss"]
[EventCountry "RUS"]
[SourceTitle "playchess.com"]
[Source "ChessBase"]
[SourceQuality "1"]
[TimeControl "5400+30"]

1. e4 {[%emt 0:00:00]} e5 {[%emt 0:02:16]} 2. Nf3 {[%emt 0:00:00]} Nc6 {[%emt 0:00:05]} 3. Bc4 {[%emt 0:00:00]} Bc5 {[%emt 0:00:27]} 4. c3 {[%emt 0:00:30]} Nf6 {[%emt 0:00:19]} 5. d3 {[%emt 0:00:05]} O-O {[%emt 0:00:55]} 6. O-O {[%emt 0:00:05]} d6 {[%emt 0:02:26]} 7. h3 {[%emt 0:00:07]} Be6 {[%emt 0:03:23] C54: Giuoco Piano: 4 c3 Nf6, main lines with 5 d4 and 5 d3} (7... a5 8. Re1 h6 9. Nbd2 Be6 10. b3 Ba7 11. Nf1 d5 12. exd5 Nxd5 13. Bd2 Qf6 14. N1h2 Rad8 15. Ng4 Bxg4 16. hxg4 {½-½ (27) Karjakin,S (2778)-Ding,L (2778) Shamkir 2018}) 8. Bb5 {[%emt 0:00:13]} a6 {[%emt 0:06:15]} 9. Ba4 {[%emt 0:00:44]} b5 {[%emt 0:00:39]} 10. Bc2 {[%emt 0:00:19]} d5 {[%emt 0:03:57]} 11. Nxe5 $146 {[%emt 0:10:20]} (11. exd5 $11 Qxd5 12. Nbd2) ({Predecessor:} 11. Bg5 dxe4 12. dxe4 Qxd1 13. Rxd1 Be7 14. Nbd2 h6 15. Be3 Bd6 16. Nf1 Rfd8 17. Ng3 {1-0 (50) Hankel,D (2180)-Van den Hoff,D (1836) Heusenstamm 2015}) 11... Nxe5 {[%emt 0:02:21]} 12. d4 {[%emt 0:02:45]} Nxe4 {[%emt 0:01:52]} 13. dxc5 {[%emt 0:21:30]} Nxc5 {[%emt 0:00:32]} 14. f4 $1 {[%emt 0:01:36]} Nc4 {[%emt 0:03:10]} 15. b3 {[%emt 0:02:21]} Nd6 {[%emt 0:01:34]} (15... Nb6 $11 {bleibt in der Remisbreite.}) 16. f5 {[%emt 0:00:18]} Bc8 {[%emt 0:02:03]} 17. Qxd5 {[%emt 0:00:14]} Ndb7 {[%emt 0:00:18]} 18. Qf3 {[%emt 0:04:06]} Qf6 {[%emt 0:03:04] [#]} 19. Be3 $1 {[%emt 0:02:55]} Bd7 {[%emt 0:02:01]} (19... Nd7 $16 {might work better.} 20. a4 Rb8) 20. b4 {[%emt 0:11:06]} (20. Qf2 $18 {has better winning chances.}) 20... Bc6 {[%emt 0:04:30]} 21. Qg3 {[%emt 0:19:03]} Ne4 22. Bxe4 {[%emt 0:01:07]} Bxe4 {[%emt 0:05:26]} 23. Bd4 {[%emt 0:00:05]} Qh6 {[%emt 0:01:14]} 24. Rf4 {[%emt 0:00:33]} Nd6 {[%emt 0:10:35] [#]} 25. Bxg7 $1 {[%emt 0:01:21]} Qxg7 {[%emt 0:02:30]} 26. Rg4 {[%emt 0:00:04]} Nxf5 {[%emt 0:00:08]} 27. Qf4 {[%emt 0:06:28]} ({Less strong is} 27. Qxc7 Rad8 $11) 27... Nd6 {[%emt 0:03:24]} 28. Rxg7+ {[%emt 0:00:08]} Kxg7 {[%emt 0:00:06]} 29. Nd2 {[%emt 0:00:31]} f5 {[%emt 0:02:30]} (29... Rae8 {was necessary.} 30. a4 Bg6 31. axb5 axb5) 30. Re1 {[%emt 0:02:28]} Rf6 {[%emt 0:03:21]} 31. Qg5+ {[%emt 0:03:33]} Rg6 {[%emt 0:01:27]} 32. Qe7+ {[%emt 0:01:11]} Kh8 {[%emt 0:01:11]} 33. Nxe4 {[%emt 0:02:30]} fxe4 {[%emt 0:01:05]} 34. Qxc7 {[%emt 0:00:41]} Re8 {[%emt 0:01:02]} 35. Qc5 {[%emt 0:01:10]} Rge6 {[%emt 0:01:17]} 36. Re3 {[%emt 0:00:46]} Nc4 $18 {[%emt 0:03:55]} 37. Qd4+ {[%emt 0:00:49]} Kg8 {[%emt 0:01:20]} 38. Rg3+ {[%emt 0:00:12]} Rg6 {[%emt 0:00:14]} 39. Rxg6+ {[%emt 0:00:38]} hxg6 {[%emt 0:00:40]} 40. Qd5+ {[%emt 0:01:29]} Kf8 {[%emt 0:00:59]} 41. Kf2 {[%emt 0:00:15]} e3+ {[%emt 0:00:12]} 42. Ke2 {[%emt 0:00:03]} Re5 {[%emt 0:01:36]} 43. Qa8+ {[%emt 0:00:15]} Kg7 {[%emt 0:00:23]} 44. Qxa6 {[%emt 0:00:20]} Rf5 {[%emt 0:00:22]} 45. a4 {[%emt 0:01:35]} Rf2+ {[%emt 0:01:24]} 46. Ke1 {[%emt 0:00:04]} Ra2 {[%emt 0:14:58]} 47. Qxb5 {[%emt 0:00:51]} Na3 {[%emt 0:00:26]} 48. Qe5+ {[%emt 0:01:01]} Kh7 {[%emt 0:00:53]} 49. Qe7+ {[%emt 0:00:06]} Kh6 {[%emt 0:00:17]} 50. Qxe3+ {[%emt 0:00:05]} Kg7 {[%emt 0:00:06]} 51. Qe7+ {[%emt 0:00:05]} Kh6 {[%emt 0:00:06]} 52. Kf1 {[%emt 0:01:48]} Nc4 {[%emt 0:00:10]} 53. Qh4+ {[%emt 0:00:11]} 0-1

[Event "22nd Alekhine FIDE 2018"]
[Site "Voronezh"]
[Date "2018.06.16"]
[Round "5"]
[White "Lebedev, Mikhail S."]
[Black "Bobkov, Vadim"]
[Result "1-0"]
[ECO "B00"]
[WhiteElo "2103"]
[BlackElo "2058"]
[Annotator "NA"]
[PlyCount "77"]
[EventDate "2018.??.??"]
[EventType "swiss"]
[EventCountry "RUS"]
[SourceTitle "playchess.com"]
[Source "ChessBase"]
[SourceQuality "1"]
[TimeControl "5400+30"]

1. e4 {[%emt 0:00:00]} Nc6 {[%emt 0:00:27]} 2. Nf3 {[%emt 0:01:50]} d6 {[%emt 0:00:05]} 3. d4 {[%emt 0:02:45]} Bg4 {[%emt 0:00:09]} 4. Be3 {[%emt 0:01:21]} g6 {[%emt 0:00:59]} 5. Nbd2 {[%emt 0:04:44]} Bg7 {[%emt 0:04:06]} 6. h3 {[%emt 0:02:33]} Bxf3 {[%emt 0:00:21]} 7. Nxf3 {[%emt 0:00:13]} Nf6 {[%emt 0:00:05]} 8. Qd3 {[%emt 0:13:16]} O-O {[%emt 0:02:35]} 9. O-O-O {[%emt 0:02:38]} a5 {[%emt 0:05:45]} 10. e5 {[%emt 0:13:18]} (10. a3 $16) 10... Nd5 {[%emt 0:04:53]} 11. e6 {[%emt 0:07:24]} fxe6 {[%emt 0:15:10]} 12. Qe4 {[%emt 0:04:59]} Qd7 {[%emt 0:01:18]} 13. Ng5 {[%emt 0:05:47]} Nd8 {[%emt 0:04:31]} 14. Bd3 {[%emt 0:07:01]} Nb4 {[%emt 0:08:32]} 15. Qh4 {[%emt 0:05:35]} Nxd3+ 16. Rxd3 {[%emt 0:00:10]} h6 {[%emt 0:00:48]} 17. Ne4 {[%emt 0:01:09]} Nf7 {[%emt 0:01:19]} 18. Qg4 {[%emt 0:02:10]} Kh7 {[%emt 0:04:16]} 19. Bd2 {[%emt 0:01:22]} Qc8 {[%emt 0:06:38]} (19... Nd8 $11) 20. Rg3 {[%emt 0:05:57]} Nh8 {[%emt 0:00:07]} 21. Qh4 {[%emt 0:03:54]} e5 {[%emt 0:10:45]} (21... Nf7 $14) 22. d5 {[%emt 0:04:26]} Rf6 {[%emt 0:10:27]} (22... Qf5 $16 {is a better defense.}) 23. Nxf6+ {[%emt 0:03:07]} exf6 {[%emt 0:00:02]} 24. Rc3 {[%emt 0:00:13]} b5 {[%emt 0:02:41] [#]} 25. g4 $14 {[%emt 0:01:01]} (25. a4 $1 $18) 25... b4 {[%emt 0:01:02]} 26. Rc6 {[%emt 0:00:34]} Qg8 {[%emt 0:02:49]} 27. Rxc7 {[%emt 0:00:15]} g5 {[%emt 0:00:03]} 28. Qg3 {[%emt 0:00:34]} Qxd5 {[%emt 0:00:01]} 29. Qd3+ {[%emt 0:00:34]} Qxd3 {[%emt 0:00:06]} 30. cxd3 {[%emt 0:00:04]} Ng6 {[%emt 0:00:47]} 31. Kb1 {[%emt 0:01:17]} Nh4 {[%emt 0:00:46]} 32. Rhc1 {[%emt 0:00:12]} Nf3 {[%emt 0:00:43]} 33. Be3 {[%emt 0:00:17]} d5 {[%emt 0:01:37]} 34. Bb6 {[%emt 0:00:10]} Ra6 {[%emt 0:01:07]} 35. Rb7 {[%emt 0:00:12]} Kg6 {[%emt 0:00:06]} 36. Rcc7 {[%emt 0:00:18]} Bf8 {[%emt 0:00:07]} 37. Rc8 {[%emt 0:00:12]} Rxb6 {[%emt 0:01:07]} 38. Rxb6 {[%emt 0:00:05]} Be7 {[%emt 0:00:04]} 39. Rb7 {[%emt 0:00:14]} 1-0